fUST/lending_fUST_20250221
["ID","MTS","AMOUNT","RATE_DAILY","PERIOD"]
[353889359,1740113451709,-2726.07,0.00014849,2]
[353889360,1740113451718,-1055.3,0.00014849,2]
[353889361,1740113451727,-501.7,0.00014849,2]
[353889362,1740113451737,-777.58,0.00014849,2]
[353889363,1740113451746,-972.14,0.00014849,2]
[353889364,1740113451756,-500.0,0.00014849,2]
[353889365,1740113451765,-11167.92,0.00014849,2]
[353889366,1740113451774,-26064.84,0.00014849,2]
[353889367,1740113451784,-1733.62,0.00014849,2]
[353889368,1740113451793,-801.09,0.00014849,2]
[353889369,1740113451803,-831.72,0.00014849,2]
[353889370,1740113451812,-623.18,0.00014849,2]
[353889371,1740113451822,-1385.86,0.00014849,2]
[353889372,1740113451831,-1082.72,0.00014849,2]
[353889373,1740113451841,-2782.93,0.00014849,2]
[353889374,1740113451850,-969.06,0.00014849,2]
[353889375,1740113451860,-4581.96,0.00014849,2]
[353889376,1740113451870,-500.0,0.00014849,2]
[353889377,1740113451879,-500.0,0.00014849,2]
[353889378,1740113451888,-2475.36,0.00014849,2]
[353889379,1740113451898,-1373.48,0.00014849,2]
[353889380,1740113451907,-1414.82,0.00014849,2]
[353889381,1740113451917,-887.18,0.00014849,2]
[353889382,1740113451926,-1655.11,0.00014849,2]
[353889383,1740113451935,-2800.8,0.00014849,2]
[353889384,1740113451945,-733.85,0.00014849,2]
[353889385,1740113451955,-603.19,0.00014849,2]
[353889386,1740113451965,-1431.61,0.00014849,2]
[353889387,1740113451975,-500.0,0.00014849,2]
[353889388,1740113451985,-615.05,0.00014849,2]
[353889389,1740113451995,-161.522347,0.00014849,2]
[353889390,1740113452004,-161.522347,0.00014849,2]
[353889391,1740113452014,-500.0,0.00014849,2]
[353889392,1740113452023,-500.0,0.00014849,2]
[353889393,1740113452033,-500.0,0.00014849,2]
[353889394,1740113452042,-511.07,0.00014849,2]
[353889395,1740113452052,-1967.37,0.00014849,2]
[353889396,1740113452061,-1280.98,0.00014849,2]
[353889397,1740113452071,-4267.99,0.00014849,2]
[353889398,1740113452081,-151.0,0.00014849,2]
[353889399,1740113452091,-620.54,0.00014849,2]
[353889400,1740113452101,-1214.71,0.00014849,2]
[353889401,1740113452110,-13113.67,0.00014849,2]
[353889402,1740113452120,-1820.91,0.00014849,2]
[353889403,1740113452130,-1564.64,0.00014849,2]
[353889404,1740113452140,-500.0,0.00014849,2]
[353889405,1740113452149,-500.0,0.00014849,2]
[353889406,1740113452159,-514.31133253,0.00014849,2]
[353889407,1740113452168,-500.0,0.00014873,2]
[353889408,1740113452179,-500.53230309,0.00014873,2]
[353889409,1740113452189,-500.38433033,0.00014873,2]
[353889410,1740113452198,-501.6663113,0.00014873,2]
[353889411,1740113452208,-500.0,0.00014873,2]
[353889412,1740113452218,-500.49924397,0.00014873,2]
[353889413,1740113452228,-330.79250448,0.00014873,2]
[353889414,1740113452241,-500.5595125,0.00014873,2]
[353889415,1740113452251,-152.0622986,0.00014873,2]
[353889416,1740113452260,-500.0,0.00014873,2]
[353889417,1740113452269,-3897.69,0.000149,2]
[353889418,1740113452279,-151.0,0.000149,2]
[353889419,1740113452288,-199.196782,0.000149,2]
[353889420,1740113452298,-153.030156,0.000149,2]
[353889421,1740113452308,-151.0,0.000149,2]
[353889422,1740113452318,-618400.732722,0.000149,2]
[353889423,1740113452328,-151.0,0.000149,2]
[353889424,1740113452339,-349.0,0.00014906,2]
[353889425,1740113452351,-349.0,0.00014906,2]
[353889426,1740113452360,-349.0,0.00014906,2]
[353889427,1740113452370,-349.0,0.00014906,2]
[353889428,1740113452380,-349.0,0.00014906,2]
[353889429,1740113452390,-349.0,0.00014906,2]
[353889430,1740113452400,-349.0,0.00014906,2]
[353889431,1740113452410,-349.0,0.00014906,2]
[353889432,1740113452419,-349.0,0.00014906,2]
[353889433,1740113452429,-349.0,0.00014906,2]
[353889434,1740113452438,-349.0,0.00014906,2]
[353889435,1740113452447,-349.0,0.00014906,2]
[353889436,1740113452456,-349.0,0.00014906,2]
[353889437,1740113452466,-349.0,0.00014906,2]
[353889438,1740113452475,-349.0,0.00014906,2]
[353889439,1740113452484,-349.0,0.00014906,2]
[353889440,1740113452494,-349.0,0.00014906,2]
[353889441,1740113452503,-349.0,0.00014906,2]
[353889442,1740113452606,-349.0,0.00014906,2]
[353889443,1740113452616,-349.0,0.00014906,2]
[353889444,1740113452625,-349.0,0.00014906,2]
[353889445,1740113452634,-349.0,0.00014906,2]
[353889446,1740113452643,-349.0,0.00014906,2]
[353889447,1740113452653,-349.0,0.00014906,2]
[353889448,1740113452662,-349.0,0.00014906,2]
[353889449,1740113452671,-349.0,0.00014906,2]
[353889450,1740113452681,-349.0,0.00014906,2]
[353889451,1740113452690,-349.0,0.00014906,2]
[353889452,1740113452699,-349.0,0.00014906,2]
[353889453,1740113452708,-349.0,0.00014906,2]
[353889454,1740113452717,-349.0,0.00014906,2]
[353889455,1740113452726,-349.0,0.00014906,2]
[353889456,1740113452736,-349.0,0.00014906,2]
[353889457,1740113452746,-349.0,0.00014906,2]
[353889458,1740113452756,-349.0,0.00014906,2]
[353889459,1740113452765,-349.0,0.00014906,2]
[353889460,1740113452776,-349.0,0.00014906,2]
[353889461,1740113452786,-349.0,0.00014906,2]
[353889462,1740113452795,-349.0,0.00014906,2]
[353889463,1740113452805,-375.28615635,0.00014906,2]
[353889464,1740113452814,-500.0,0.00014931,2]
[353889465,1740113452823,-166.0,0.00014931,2]
[353889466,1740113452832,-166.0,0.00014931,2]
[353889467,1740113452842,-168.0,0.00014931,2]
[353889468,1740113452851,-250.0,0.00014931,2]
[353889469,1740113452860,-349.0,0.00014931,2]
[353889470,1740113452870,-349.0,0.00014931,2]
[353889471,1740113452879,-349.0,0.00014931,2]
[353889472,1740113452889,-349.0,0.00014931,2]
[353889473,1740113452899,-349.0,0.00014931,2]
[353889474,1740113452908,-349.0,0.00014931,2]
[353889475,1740113452918,-411.81781263,0.00014931,2]
[353889476,1740113452927,-500.0,0.00014931,2]
[353889477,1740113452937,-185.64164412,0.00014931,2]
[353889478,1740113452946,-500.0,0.00014931,2]
[353889479,1740113452956,-690.02,0.00014931,2]
[353889480,1740113452965,-575.81,0.00014931,2]
[353889481,1740113452976,-376.14953576,0.00014931,2]
[353889482,1740113452985,-500.0,0.00014931,2]
[353889483,1740113452995,-462.96857932,0.00014931,2]
[353889484,1740113453004,-500.0,0.00014931,2]
[353889485,1740113453014,-673.52,0.00014931,2]
[353889486,1740113453023,-508.92,0.00014931,2]
[353889487,1740113453033,-500.0,0.00014931,2]
[353889488,1740113453044,-167.0,0.00014931,2]
[353889489,1740113453054,-307.22528661,0.00014931,2]
[353889490,1740113453063,-314.0,0.00014931,2]
[353889491,1740113453073,-314.0,0.00014931,2]
[353889492,1740113453082,-314.0,0.00014931,2]
[353889493,1740113453092,-314.0,0.00014931,2]
[353889494,1740113453101,-314.0,0.00014931,2]
[353889495,1740113453111,-314.0,0.00014931,2]
[353889496,1740113453120,-314.0,0.00014931,2]
[353889497,1740113453130,-314.0,0.00014931,2]
[353889498,1740113453140,-314.0,0.00014931,2]
[353889499,1740113453149,-314.0,0.00014931,2]
[353889500,1740113453158,-314.0,0.00014931,2]
[353889501,1740113453167,-314.0,0.00014931,2]
[353889502,1740113453176,-314.0,0.00014931,2]
[353889503,1740113453186,-314.0,0.00014931,2]
[353889504,1740113453195,-314.0,0.00014931,2]
[353889505,1740113453205,-314.0,0.00014931,2]
[353889506,1740113453214,-314.0,0.00014931,2]
[353889507,1740113453224,-314.0,0.00014931,2]
[353889508,1740113453234,-314.0,0.00014931,2]
[353889509,1740113453247,-314.0,0.00014931,2]
[353889510,1740113453257,-314.0,0.00014931,2]
[353889511,1740113453267,-314.0,0.00014931,2]
[353889512,1740113453276,-314.0,0.00014931,2]
[353889513,1740113453287,-314.0,0.00014931,2]
[353889514,1740113453295,-314.0,0.00014931,2]
[353889515,1740113453304,-314.0,0.00014931,2]
[353889516,1740113453314,-314.0,0.00014931,2]
[353889517,1740113453324,-314.0,0.00014931,2]
[353889518,1740113453333,-314.0,0.00014931,2]
[353889519,1740113453343,-314.0,0.00014931,2]
[353889520,1740113453353,-274.64004479,0.00014931,2]
[353889521,1740113453362,-5392.83,0.00014931,2]
[353889522,1740113453372,-1829.01,0.00014931,2]
[353889523,1740113453382,-2726.07,0.00014931,2]
[353889524,1740113453391,-1055.3,0.00014931,2]
[353889525,1740113453400,-501.7,0.00014931,2]
[353889526,1740113453409,-777.58,0.00014931,2]
[353889527,1740113453419,-972.14,0.00014931,2]
[353889528,1740113453429,-500.0,0.00014931,2]
[353889529,1740113453439,-11167.92,0.00014931,2]
[353889530,1740113453448,-26064.84,0.00014931,2]
[353889531,1740113453459,-1733.62,0.00014931,2]
[353889532,1740113453468,-801.09,0.00014931,2]
[353889533,1740113453478,-831.72,0.00014931,2]
[353889534,1740113453487,-623.18,0.00014931,2]
[353889535,1740113453497,-1385.86,0.00014931,2]
[353889536,1740113453506,-1082.72,0.00014931,2]
[353889537,1740113453514,-2782.93,0.00014931,2]
[353889538,1740113453523,-969.06,0.00014931,2]
[353889539,1740113453533,-4581.96,0.00014931,2]
[353889540,1740113453542,-500.0,0.00014931,2]
[353889541,1740113453552,-500.0,0.00014931,2]
[353889542,1740113453561,-2475.36,0.00014931,2]
[353889543,1740113453570,-1373.48,0.00014931,2]
[353889544,1740113453579,-1414.82,0.00014931,2]
[353889545,1740113453589,-887.18,0.00014931,2]
[353889546,1740113453599,-1655.11,0.00014931,2]
[353889547,1740113453607,-2800.8,0.00014931,2]
[353889548,1740113453616,-733.85,0.00014931,2]
[353889549,1740113453626,-603.19,0.00014931,2]
[353889550,1740113453635,-500.0,0.00014931,2]
[353889551,1740113453645,-1431.61,0.00014931,2]
[353889552,1740113453654,-615.05,0.00014931,2]
[353889553,1740113453664,-500.0,0.00014931,2]
[353889554,1740113453673,-317.31127923,0.00014931,2]
[353889555,1740113453682,-500.0,0.00014931,2]
[353889556,1740113453692,-511.07,0.00014931,2]
[353889557,1740113453702,-1967.37,0.00014931,2]
[353889558,1740113453712,-1280.98,0.00014931,2]
[353889559,1740113453721,-4267.99,0.00014931,2]
[353889560,1740113453730,-620.54,0.00014931,2]
[353889561,1740113453740,-1214.71,0.00014931,2]
[353889562,1740113453750,-13113.67,0.00014931,2]
[353889563,1740113453760,-1820.91,0.00014931,2]
[353889564,1740113453769,-1564.64,0.00014931,2]
[353889565,1740113453779,-500.0,0.00014931,2]
[353889566,1740113453789,-500.0,0.00014931,2]
[353889567,1740113453798,-13725.86383335,0.00014985,2]
[353889568,1740113453807,-198.0,0.00015,3]
[353889569,1740113453816,-198.0,0.00015,14]
[353889570,1740113453825,-623.0,0.00015,2]
[353889571,1740113453834,-420.0,0.0001501,2]
[353889572,1740113453844,-342.14124359,0.00015012,2]
[353889573,1740113453854,-160.0,0.00015012,2]
[353889574,1740113453863,-611.4023773,0.00015013,2]
[353889575,1740113453872,-500.0,0.00015013,2]
[353889576,1740113453882,-500.0,0.00015013,2]
[353889577,1740113453891,-500.0,0.00015013,2]
[353889578,1740113453902,-690.02,0.00015013,2]
[353889579,1740113453911,-575.81,0.00015013,2]
[353889580,1740113453921,-500.0,0.00015013,2]
[353889581,1740113453931,-500.0,0.00015013,2]
[353889582,1740113453940,-673.52,0.00015013,2]
[353889583,1740113453949,-508.92,0.00015013,2]
[353889584,1740113453959,-500.0,0.00015013,2]
[353889585,1740113453968,-5392.83,0.00015013,2]
[353889586,1740113453978,-1829.01,0.00015013,2]
[353889587,1740113453987,-2726.07,0.00015013,2]
[353889588,1740113453996,-1055.3,0.00015013,2]
[353889589,1740113454005,-501.7,0.00015013,2]
[353889590,1740113454014,-777.58,0.00015013,2]
[353889591,1740113454024,-972.14,0.00015013,2]
[353889592,1740113454033,-500.0,0.00015013,2]
[353889593,1740113454043,-11167.92,0.00015013,2]
[353889594,1740113454053,-26064.84,0.00015013,2]
[353889595,1740113454063,-1733.62,0.00015013,2]
[353889596,1740113454072,-801.09,0.00015013,2]
[353889597,1740113454082,-831.72,0.00015013,2]
[353889598,1740113454091,-623.18,0.00015013,2]
[353889599,1740113454101,-1385.86,0.00015013,2]
[353889600,1740113454110,-1082.72,0.00015013,2]
[353889601,1740113454120,-2782.93,0.00015013,2]
[353889602,1740113454130,-969.06,0.00015013,2]
[353889603,1740113454139,-4581.96,0.00015013,2]
[353889604,1740113454149,-616.57306106,0.00015013,2]
[353889605,1740113454159,-500.0,0.00015013,2]
[353889606,1740113454168,-2475.36,0.00015013,2]
[353889607,1740113454178,-1373.48,0.00015013,2]
[353889608,1740113454187,-1414.82,0.00015013,2]
[353889609,1740113454196,-887.18,0.00015013,2]
[353889610,1740113454206,-1655.11,0.00015013,2]
[353889611,1740113454215,-2800.8,0.00015013,2]
[353889612,1740113454225,-733.85,0.00015013,2]
[353889613,1740113454236,-603.19,0.00015013,2]
[353889614,1740113454247,-511.89918106,0.00015013,2]
[353889615,1740113454256,-1431.61,0.00015013,2]
[353889616,1740113454266,-615.05,0.00015013,2]
[353889617,1740113454275,-500.0,0.00015013,2]
[353889618,1740113454285,-500.0,0.00015013,2]
[353889619,1740113454295,-511.07,0.00015013,2]
[353889620,1740113454304,-1967.37,0.00015013,2]
[353889621,1740113454314,-1280.98,0.00015013,2]
[353889622,1740113454324,-4267.99,0.00015013,2]
[353889623,1740113454334,-620.54,0.00015013,2]
[353889624,1740113454344,-1214.71,0.00015013,2]
[353889625,1740113454354,-11704.76980538,0.00015013,2]
[353889626,1740113454368,-1408.90019462,0.00015013,2]
[353889627,1740113454378,-1403.71540401,0.00015013,2]
[353889629,1740113754896,5969.72,8.001e-05,2]
[353889631,1740113852214,318.417128,9.041e-05,2]
[353889633,1740114258182,3000.0,0.00018007,120]
[353889661,1740114632273,-252.76129741,0.00012858,2]
[353889685,1740114638243,-76.25492699,0.00012858,2]
[353889686,1740114638252,-700.0,0.00013068,2]
[353889687,1740114638262,-763.66124071,0.00013377,2]
[353889688,1740114638271,-163.51248244,0.00013598,2]
[353889689,1740114638280,-300.0,0.00013697,2]
[353889690,1740114638290,-500.0,0.00013698,2]
[353889691,1740114638301,-500.0,0.00013698,2]
[353889692,1740114638310,-213.92220593,0.00013698,2]
[353889693,1740114638319,-500.0,0.00013698,2]
[353889694,1740114638329,-500.0,0.00013698,2]
[353889695,1740114638338,-1000.0,0.00013698,2]
[353889696,1740114638347,-500.0,0.00013698,2]
[353889697,1740114638356,-500.0,0.00013698,2]
[353889698,1740114638366,-500.0,0.00013698,2]
[353889699,1740114638376,-500.0,0.00013698,2]
[353889700,1740114638386,-500.0,0.00013698,2]
[353889701,1740114638396,-500.0,0.00013698,2]
[353889702,1740114638408,-500.0,0.00013698,2]
[353889703,1740114638420,-500.0,0.00013698,2]
[353889704,1740114638430,-506.26753492,0.00013698,2]
[353889705,1740114638444,-366.07919931,0.00013698,2]
[353889706,1740114638453,-500.0,0.00013698,2]
[353889707,1740114638463,-500.0,0.00013698,2]
[353889708,1740114638472,-500.0,0.00013698,2]
[353889709,1740114638481,-500.0,0.00013698,2]
[353889710,1740114638490,-500.0,0.00013698,2]
[353889711,1740114638500,-500.0,0.00013698,2]
[353889712,1740114638509,-500.0,0.00013698,2]
[353889713,1740114638518,-500.0,0.00013698,2]
[353889714,1740114638529,-524.28,0.00013698,2]
[353889715,1740114638538,-500.0,0.00013698,2]
[353889716,1740114638547,-500.0,0.00013698,2]
[353889717,1740114638557,-500.0,0.00013698,2]
[353889718,1740114638566,-511.75,0.00013698,2]
[353889719,1740114638575,-500.0,0.00013698,2]
[353889720,1740114638584,-500.0,0.00013698,2]
[353889721,1740114638593,-500.0,0.00013698,2]
[353889722,1740114638603,-500.0,0.00013698,2]
[353889723,1740114638612,-500.0,0.00013698,2]
[353889724,1740114638624,-500.0,0.00013698,2]
[353889725,1740114638634,-500.0,0.00013698,2]
[353889726,1740114638643,-500.0,0.00013698,2]
[353889727,1740114638652,-500.0,0.00013698,2]
[353889728,1740114638662,-500.0,0.00013698,2]
[353889729,1740114638672,-500.0,0.00013698,2]
[353889730,1740114638681,-500.0,0.00013698,2]
[353889731,1740114638690,-500.0,0.00013698,2]
[353889732,1740114638700,-500.0,0.00013698,2]
[353889733,1740114638710,-1007.53,0.00013698,2]
[353889734,1740114638719,-4009.9,0.00013698,2]
[353889735,1740114638728,-8446.91,0.00013698,2]
[353889736,1740114638738,-615.2,0.00013698,2]
[353889737,1740114638747,-1320.31,0.00013698,2]
[353889738,1740114638757,-500.0,0.00013698,2]
[353889739,1740114638766,-1155.45,0.00013698,2]
[353889740,1740114638775,-332.35525799,0.00013698,2]
[353889741,1740114638784,-557.27,0.00013698,2]
[353889742,1740114638795,-500.0,0.00013698,2]
[353889743,1740114638805,-752.73,0.00013698,2]
[353889744,1740114638814,-500.0,0.00013698,2]
[353889745,1740114638824,-330.96217767,0.00013698,2]
[353889746,1740114638833,-500.0,0.00013698,2]
[353889747,1740114638842,-500.0,0.00013698,2]
[353889748,1740114638851,-648.09,0.00013698,2]
[353889749,1740114638860,-17376.56,0.00013698,2]
[353889750,1740114638869,-500.0,0.00013698,2]
[353889751,1740114638882,-500.0,0.00013698,2]
[353889752,1740114638892,-500.0,0.00013698,2]
[353889753,1740114638901,-923.91,0.00013698,2]
[353889754,1740114638911,-554.48,0.00013698,2]
[353889755,1740114638920,-500.0,0.00013698,2]
[353889756,1740114638932,-1155.74,0.00013698,2]
[353889757,1740114638941,-721.81,0.00013698,2]
[353889758,1740114638950,-646.04,0.00013698,2]
[353889759,1740114638960,-500.0,0.00013698,2]
[353889760,1740114638969,-1855.29,0.00013698,2]
[353889761,1740114638978,-500.0,0.00013698,2]
[353889762,1740114638987,-3407.22,0.00013698,2]
[353889763,1740114638996,-7910.61,0.00013698,2]
[353889764,1740114639006,-1002.16,0.00013698,2]
[353889765,1740114639015,-500.0,0.00013698,2]
[353889766,1740114639025,-600.82,0.00013698,2]
[353889767,1740114639034,-500.0,0.00013698,2]
[353889768,1740114639043,-1241.33,0.00013698,2]
[353889769,1740114639052,-1856.52,0.00013698,2]
[353889770,1740114639062,-500.0,0.00013698,2]
[353889771,1740114639071,-1030.11,0.00013698,2]
[353889772,1740114639080,-2100.6,0.00013698,2]
[353889773,1740114639089,-665.38,0.00013698,2]
[353889774,1740114639099,-500.0,0.00013698,2]
[353889775,1740114639108,-500.0,0.00013698,2]
[353889776,1740114639117,-580.96,0.00013698,2]
[353889777,1740114639126,-343.97326887,0.00013698,2]
[353889778,1740114639139,-500.0,0.00013698,2]
[353889779,1740114639154,-1133.36,0.00013698,2]
[353889780,1740114639163,-500.0,0.00013698,2]
[353889781,1740114639172,-500.0,0.00013698,2]
[353889782,1740114639182,-500.0,0.00013698,2]
[353889783,1740114639191,-1557.5,0.00013698,2]
[353889784,1740114639200,-500.0,0.00013698,2]
[353889785,1740114639209,-1012.26,0.00013698,2]
[353889786,1740114639218,-500.0,0.00013698,2]
[353889787,1740114639227,-500.0,0.00013698,2]
[353889788,1740114639236,-500.0,0.00013698,2]
[353889789,1740114639246,-1120.86,0.00013698,2]
[353889790,1740114639256,-3734.49,0.00013698,2]
[353889791,1740114639265,-500.0,0.00013698,2]
[353889792,1740114639276,-542.97,0.00013698,2]
[353889793,1740114639286,-500.0,0.00013698,2]
[353889794,1740114639295,-500.0,0.00013698,2]
[353889795,1740114639305,-201.43783075,0.00013699,2]
[353889796,1740114639314,-200.088731,0.00013699,2]
[353889797,1740114639324,-500.0,0.0001378,2]
[353889798,1740114639333,-500.0,0.0001378,2]
[353889799,1740114639343,-500.0,0.0001378,2]
[353889800,1740114639352,-500.0,0.0001378,2]
[353889801,1740114639361,-500.0,0.0001378,2]
[353889802,1740114639371,-1000.0,0.0001378,2]
[353889803,1740114639381,-500.0,0.0001378,2]
[353889804,1740114639391,-500.0,0.0001378,2]
[353889805,1740114639401,-500.0,0.0001378,2]
[353889806,1740114639412,-500.0,0.0001378,2]
[353889807,1740114639436,-500.0,0.0001378,2]
[353889808,1740114639446,-500.0,0.0001378,2]
[353889809,1740114639603,-500.0,0.0001378,2]
[353889810,1740114639617,-500.0,0.0001378,2]
[353889811,1740114639629,-500.0,0.0001378,2]
[353889812,1740114639639,-500.0,0.0001378,2]
[353889813,1740114639649,-500.0,0.0001378,2]
[353889814,1740114639658,-500.0,0.0001378,2]
[353889815,1740114639669,-500.0,0.0001378,2]
[353889816,1740114639681,-500.0,0.0001378,2]
[353889817,1740114639690,-500.0,0.0001378,2]
[353889818,1740114639700,-500.0,0.0001378,2]
[353889819,1740114639711,-524.28,0.0001378,2]
[353889820,1740114639721,-500.0,0.0001378,2]
[353889821,1740114639730,-500.0,0.0001378,2]
[353889822,1740114639739,-500.0,0.0001378,2]
[353889823,1740114639748,-511.75,0.0001378,2]
[353889824,1740114639757,-500.0,0.0001378,2]
[353889825,1740114639767,-500.0,0.0001378,2]
[353889826,1740114639776,-500.0,0.0001378,2]
[353889827,1740114639787,-500.0,0.0001378,2]
[353889828,1740114639796,-500.0,0.0001378,2]
[353889829,1740114639805,-500.0,0.0001378,2]
[353889830,1740114639815,-500.0,0.0001378,2]
[353889831,1740114639825,-500.0,0.0001378,2]
[353889832,1740114639835,-500.0,0.0001378,2]
[353889833,1740114639844,-500.0,0.0001378,2]
[353889834,1740114639854,-436.49850278,0.0001378,2]
[353889835,1740114639864,-500.0,0.0001378,2]
[353889836,1740114639873,-500.0,0.0001378,2]
[353889837,1740114639883,-500.0,0.0001378,2]
[353889838,1740114639891,-1007.53,0.0001378,2]
[353889839,1740114639900,-4009.9,0.0001378,2]
[353889840,1740114639910,-8446.91,0.0001378,2]
[353889841,1740114639920,-615.2,0.0001378,2]
[353889842,1740114639930,-1320.31,0.0001378,2]
[353889843,1740114639939,-500.0,0.0001378,2]
[353889844,1740114639948,-1155.45,0.0001378,2]
[353889845,1740114639958,-557.27,0.0001378,2]
[353889846,1740114639968,-500.0,0.0001378,2]
[353889848,1740114639977,-752.73,0.0001378,2]
[353889849,1740114639986,-500.0,0.0001378,2]
[353889850,1740114639996,-500.0,0.0001378,2]
[353889851,1740114640005,-500.0,0.0001378,2]
[353889852,1740114640014,-648.09,0.0001378,2]
[353889853,1740114640024,-17376.56,0.0001378,2]
[353889855,1740114640033,-500.0,0.0001378,2]
[353889857,1740114640044,-500.0,0.0001378,2]
[353889859,1740114640053,-923.91,0.0001378,2]
[353889860,1740114640063,-554.48,0.0001378,2]
[353889861,1740114640073,-500.0,0.0001378,2]
[353889862,1740114640082,-500.0,0.0001378,2]
[353889864,1740114640091,-1155.74,0.0001378,2]
[353889866,1740114640100,-721.81,0.0001378,2]
[353889868,1740114640110,-646.04,0.0001378,2]
[353889869,1740114640119,-500.0,0.0001378,2]
[353889870,1740114640128,-1855.29,0.0001378,2]
[353889871,1740114640137,-500.0,0.0001378,2]
[353889873,1740114640147,-3407.22,0.0001378,2]
[353889875,1740114640157,-7910.61,0.0001378,2]
[353889877,1740114640167,-1002.16,0.0001378,2]
[353889879,1740114640177,-500.0,0.0001378,2]
[353889880,1740114640187,-600.82,0.0001378,2]
[353889881,1740114640196,-500.0,0.0001378,2]
[353889882,1740114640206,-1241.33,0.0001378,2]
[353889883,1740114640216,-1856.52,0.0001378,2]
[353889884,1740114640225,-500.0,0.0001378,2]
[353889885,1740114640234,-1030.11,0.0001378,2]
[353889886,1740114640244,-2100.6,0.0001378,2]
[353889887,1740114640253,-665.38,0.0001378,2]
[353889888,1740114640263,-500.0,0.0001378,2]
[353889889,1740114640272,-500.0,0.0001378,2]
[353889890,1740114640282,-580.96,0.0001378,2]
[353889891,1740114640291,-500.0,0.0001378,2]
[353889892,1740114640300,-1133.36,0.0001378,2]
[353889893,1740114640310,-500.0,0.0001378,2]
[353889894,1740114640319,-500.0,0.0001378,2]
[353889895,1740114640329,-500.0,0.0001378,2]
[353889896,1740114640338,-1557.5,0.0001378,2]
[353889897,1740114640348,-500.0,0.0001378,2]
[353889898,1740114640357,-1012.26,0.0001378,2]
[353889900,1740114640367,-500.0,0.0001378,2]
[353889902,1740114640381,-500.0,0.0001378,2]
[353889904,1740114640395,-500.0,0.0001378,2]
[353889905,1740114640406,-1120.86,0.0001378,2]
[353889906,1740114640416,-3734.49,0.0001378,2]
[353889907,1740114640426,-500.0,0.0001378,2]
[353889908,1740114640435,-542.97,0.0001378,2]
[353889910,1740114640444,-500.0,0.0001378,2]
[353889912,1740114640454,-500.0,0.0001378,2]
[353889914,1740114640464,-355.2534587,0.000138,2]
[353889916,1740114640473,-3000.0,0.00013845,2]
[353889918,1740114640482,-500.0,0.00013863,2]
[353889919,1740114640491,-500.0,0.00013863,2]
[353889921,1740114640504,-500.0,0.00013863,2]
[353889922,1740114640513,-500.0,0.00013863,2]
[353889923,1740114640522,-361.98425505,0.00013863,2]
[353889924,1740114640532,-500.0,0.00013863,2]
[353889925,1740114640542,-500.0,0.00013863,2]
[353889926,1740114640552,-500.0,0.00013863,2]
[353889927,1740114640561,-500.0,0.00013863,2]
[353889928,1740114640571,-500.0,0.00013863,2]
[353889929,1740114640581,-500.0,0.00013863,2]
[353889930,1740114640590,-500.0,0.00013863,2]
[353889931,1740114640599,-500.0,0.00013863,2]